bitfinex/quotes_BTCUSD_20240701
["timestamp","ask_amount","ask_price","bid_price","bid_amount"]
[1719815240952,0.00084,63397.0,63396.0,3.64747365]
[1719815241516,0.00084,63397.0,63396.0,3.52929851]
[1719815243916,0.1,63414.0,63396.0,3.52929851]
[1719815243917,0.07964,63417.0,63416.0,0.39723798]
[1719815244176,0.07964,63417.0,63416.0,1.41687298]
[1719815244177,0.14184,63417.0,63416.0,1.41687298]
[1719815244380,0.14184,63417.0,63416.0,1.89458896]
[1719815244537,0.07964,63417.0,63416.0,2.09458896]
[1719815244779,0.07964,63417.0,63416.0,2.40996596]
[1719815245464,0.00184,63417.0,63416.0,2.40996596]
[1719815245959,0.00284,63417.0,63416.0,2.40996596]
[1719815246200,0.00184,63417.0,63416.0,2.40996596]
[1719815246580,0.00184,63417.0,63416.0,2.42396596]
[1719815246986,0.00184,63417.0,63416.0,2.40996596]
[1719815247187,0.00084,63417.0,63416.0,2.40996596]
[1719815247817,0.00084,63417.0,63416.0,2.42396596]
[1719815248466,0.00084,63417.0,63416.0,2.40996596]
[1719815248820,0.00084,63417.0,63416.0,2.42396596]
[1719815249021,0.00084,63417.0,63416.0,2.35046596]
[1719815249279,0.00084,63417.0,63416.0,2.42396596]
[1719815249436,0.00084,63417.0,63416.0,2.43796596]
[1719815252357,0.00084,63417.0,63416.0,2.97248132]
[1719815252729,0.0761,63427.0,63426.0,1.27022998]
[1719815252880,0.0761,63427.0,63426.0,1.97905896]
[1719815253084,0.0761,63427.0,63426.0,2.60971496]
[1719815254262,0.0761,63427.0,63426.0,2.61071496]
[1719815254865,0.0761,63427.0,63426.0,2.61271496]
[1719815255384,0.1,63435.0,63434.0,0.67016998]
[1719815255595,0.1,63441.0,63436.0,0.19723798]
[1719815255771,0.1,63441.0,63436.0,0.67015798]
[1719815255970,0.15041,63437.0,63436.0,0.67015798]
[1719815256257,0.25041,63437.0,63436.0,0.67015798]
[1719815257149,0.25041,63437.0,63436.0,1.14307498]
[1719815257510,0.25041,63437.0,63436.0,0.82779698]
[1719815257894,0.25041,63437.0,63436.0,0.82775595]
[1719815260266,0.25041,63437.0,63436.0,0.67011695]
[1719815260267,0.408046,63437.0,63436.0,0.67011695]
[1719815261945,0.25041,63437.0,63436.0,0.67011695]
[1719815262266,0.25041,63437.0,63436.0,0.87111695]
[1719815262440,0.25041,63437.0,63436.0,1.02875595]
[1719815262647,0.25041,63437.0,63436.0,1.34403395]
[1719815263027,0.25041,63437.0,63436.0,1.34503395]
[1719815263224,0.09121,63437.0,63436.0,2.02265093]
[1719815263430,0.09121,63437.0,63436.0,1.82265093]
[1719815263606,0.00841,63437.0,63436.0,1.82165093]
[1719815264607,0.00841,63437.0,63436.0,1.82065093]
[1719815266189,0.00841,63437.0,63436.0,2.02065093]
[1719815270229,0.00841,63437.0,63436.0,1.82065093]
[1719815270826,0.15311,63437.0,63436.0,1.82065093]
[1719815271548,0.15311,63437.0,63436.0,1.82157493]
[1719815272349,0.15311,63437.0,63436.0,1.19101893]
[1719815275306,0.15311,63437.0,63436.0,1.03337993]
[1719815276085,0.15311,63437.0,63436.0,0.87104095]
[1719815276086,0.626019,63437.0,63436.0,0.87104095]
[1719815276399,0.941292,63437.0,63436.0,0.87104095]
[1719815276601,0.951292,63437.0,63436.0,0.66108198]
[1719815276966,1.366565,63437.0,63436.0,0.67104095]
[1719815277198,1.366565,63437.0,63436.0,0.66108198]
[1719815277389,1.366565,63437.0,63436.0,0.67104095]
[1719815278223,1.366565,63437.0,63436.0,0.67204095]
[1719815279839,1.366565,63437.0,63436.0,0.67304095]
[1719815281280,1.366565,63437.0,63436.0,0.66308198]
[1719815281587,1.366565,63437.0,63436.0,0.67304095]
[1719815281784,1.366565,63437.0,63436.0,0.66308198]
[1719815282419,1.366565,63437.0,63436.0,0.49494942]
[1719815288780,1.366565,63437.0,63436.0,0.66308198]
[1719815289443,1.41373318,63437.0,63436.0,0.66308198]
[1719815290371,1.41373318,63437.0,63436.0,0.49494942]
[1719815290874,1.41376201,63437.0,63436.0,0.49494942]
[1719815291245,1.41376201,63437.0,63436.0,0.66308198]
[1719815294029,1.41376224,63437.0,63436.0,0.66308198]
[1719815294243,1.366565,63437.0,63436.0,0.66308198]
[1719815294427,1.41376102,63437.0,63436.0,0.66308198]
[1719815295603,1.366565,63437.0,63436.0,0.67304095]
[1719815296486,1.356565,63437.0,63436.0,0.67304095]
[1719815299441,0.896592,63437.0,63436.0,0.67304095]
[1719815301787,1.046892,63437.0,63436.0,0.66308198]
[1719815302209,1.362165,63437.0,63436.0,0.66308198]
[1719815303400,1.362165,63437.0,63436.0,0.49494942]
[1719815303401,1.60800398,63437.0,63436.0,0.49494942]
[1719815303602,1.60800398,63437.0,63436.0,0.475844]
[1719815303800,1.70351916,63437.0,63436.0,0.475844]
[1719815304000,1.69351916,63437.0,63436.0,0.49494942]
[1719815304777,1.69351916,63437.0,63436.0,0.474844]
[1719815304778,1.70351916,63437.0,63436.0,0.474844]
[1719815305000,2.01879216,63437.0,63436.0,0.474844]
[1719815305601,2.01879216,63437.0,63436.0,0.473844]
[1719815305832,2.01879216,63437.0,63436.0,0.474844]
[1719815306032,2.01879216,63437.0,63436.0,0.475844]
[1719815306299,2.01879216,63437.0,63436.0,0.474844]
[1719815306667,2.01879216,63437.0,63436.0,0.473844]
[1719815307046,2.02777437,63437.0,63436.0,0.474844]
[1719815308458,2.03677437,63437.0,63436.0,0.475844]
[1719815309602,2.03677152,63437.0,63436.0,0.475844]
[1719815311990,2.02677152,63437.0,63436.0,0.475844]
[1719815312601,1.95595843,63437.0,63436.0,0.475844]
[1719815312799,1.88245843,63437.0,63436.0,0.475844]
[1719815313426,1.56718543,63437.0,63436.0,0.475844]
[1719815313627,1.64068543,63437.0,63436.0,0.475844]
[1719815315709,1.73511724,63437.0,63436.0,0.475844]
[1719815316120,1.64068543,63437.0,63436.0,0.475844]
[1719815316325,1.735145,63437.0,63436.0,0.475844]
[1719815318375,1.64068543,63437.0,63436.0,0.475844]
[1719815318809,1.64068543,63437.0,63436.0,0.64397656]
[1719815319310,1.75878246,63437.0,63436.0,0.475844]
[1719815319509,1.75878246,63437.0,63436.0,0.64397656]
[1719815319746,1.75880129,63437.0,63436.0,0.475844]
[1719815320959,2.07407429,63437.0,63436.0,0.475844]
[1719815321460,1.95595843,63437.0,63436.0,0.475844]
[1719815322528,1.64068543,63437.0,63436.0,0.475844]
[1719815322911,1.65068543,63437.0,63436.0,0.475844]
[1719815323112,1.96595843,63437.0,63436.0,0.475844]
[1719815323559,1.54913837,63437.0,63436.0,0.475844]
[1719815323735,1.50628543,63437.0,63436.0,0.475844]
[1719815324540,1.50628543,63437.0,63436.0,0.64397656]
[1719815324816,1.50628543,63437.0,63436.0,0.475844]
[1719815325180,1.50628543,63437.0,63436.0,0.64397656]
[1719815325459,1.57978543,63437.0,63436.0,0.475844]
[1719815326093,1.57978543,63437.0,63436.0,0.423114]
[1719815328742,1.50038543,63437.0,63436.0,0.61035198]
[1719815328974,1.54507604,63437.0,63436.0,0.61035198]
[1719815329177,1.54507604,63437.0,63436.0,0.44221942]
[1719815329178,1.68717604,63437.0,63436.0,0.44221942]
[1719815330301,1.76067604,63437.0,63436.0,0.44221942]
[1719815330508,1.65248543,63437.0,63436.0,0.44221942]
[1719815330900,1.64248543,63437.0,63436.0,0.44221942]
[1719815331335,1.96775843,63437.0,63436.0,0.44221942]
[1719815331457,1.65248543,63437.0,63436.0,0.44221942]
[1719815332398,1.65248543,63437.0,63436.0,0.423114]
[1719815332399,1.96775843,63437.0,63436.0,0.423114]
[1719815332804,1.64248543,63437.0,63436.0,0.423114]
[1719815333371,1.96775843,63437.0,63436.0,0.423114]
[1719815334856,1.95775843,63437.0,63436.0,0.423114]
[1719815335070,1.96775843,63437.0,63436.0,0.423114]
[1719815340309,2.06265843,63437.0,63436.0,0.423114]
[1719815340505,2.07574424,63437.0,63436.0,0.423114]
[1719815340873,2.06265843,63437.0,63436.0,0.423114]
[1719815341069,2.07574391,63437.0,63436.0,0.423114]
[1719815341739,2.39101691,63437.0,63436.0,0.423114]
[1719815341908,2.07574391,63437.0,63436.0,0.423114]
[1719815342488,2.10761135,63437.0,63436.0,0.423114]
[1719815342637,2.4626026,63437.0,63436.0,0.423114]
[1719815342801,2.43073516,63437.0,63436.0,0.423114]
[1719815343009,3.00784016,63437.0,63436.0,0.423114]
[1719815343873,2.99475468,63437.0,63436.0,0.423114]
[1719815344089,3.06142708,63437.0,63436.0,0.422114]
[1719815344276,2.99885425,63437.0,63436.0,0.422114]
[1719815344455,3.00386172,63437.0,63436.0,0.421114]
[1719815346611,3.01786172,63437.0,63436.0,0.421114]
[1719815347072,2.33743143,63437.0,63436.0,0.421114]
[1719815347273,1.84614376,63437.0,63436.0,0.421114]
[1719815347421,1.84614352,63437.0,63436.0,0.421114]
[1719815347624,1.84705843,63437.0,63436.0,0.421114]
[1719815347823,1.84705843,63437.0,63436.0,0.58924656]
[1719815348186,1.83305843,63437.0,63436.0,0.58924656]
[1719815348388,1.81905843,63437.0,63436.0,0.58924656]
[1719815348896,1.83305843,63437.0,63436.0,0.58924656]
[1719815349105,1.81905843,63437.0,63436.0,0.58924656]
[1719815349616,1.83305843,63437.0,63436.0,0.58924656]
[1719815350018,1.42288543,63437.0,63436.0,0.59920553]
[1719815350264,0.95379599,63437.0,63436.0,0.76391095]
[1719815350539,0.90548462,63437.0,63436.0,0.76391095]
[1719815350653,0.834592,63437.0,63436.0,0.76391095]
[1719815351115,0.820592,63437.0,63436.0,0.76291095]
[1719815351255,0.806592,63437.0,63436.0,0.76291095]
[1719815351488,0.920592,63437.0,63436.0,0.76391095]
[1719815351705,0.934592,63437.0,63436.0,0.76391095]
[1719815351904,0.924592,63437.0,63436.0,0.76391095]
[1719815352105,0.896592,63437.0,63436.0,0.76291095]
[1719815352508,0.901592,63437.0,63436.0,0.76291095]
[1719815354111,0.905592,63437.0,63436.0,0.76291095]
[1719815356873,0.11741,63437.0,63436.0,0.76291095]
[1719815357081,0.01741,63437.0,63436.0,1.50932795]
[1719815357440,0.01741,63437.0,63436.0,1.19404995]
[1719815358346,0.01741,63437.0,63436.0,1.03641095]
[1719815358593,0.01341,63437.0,63436.0,1.03641095]
[1719815358792,0.00841,63437.0,63436.0,1.03641095]
[1719815359001,0.01241,63437.0,63436.0,1.03641095]
[1719815359169,0.01241,63437.0,63436.0,1.03841095]
[1719815359575,0.00841,63437.0,63436.0,1.03841095]
[1719815360319,0.00841,63437.0,63436.0,1.03641095]
[1719815360606,0.00841,63437.0,63436.0,1.03841095]
[1719815361011,0.00841,63437.0,63436.0,0.76491095]
[1719815361012,0.166046,63437.0,63436.0,0.76491095]
[1719815361213,0.266046,63437.0,63436.0,0.76491095]
[1719815361716,0.266046,63437.0,63436.0,0.76891095]
[1719815362207,0.266046,63437.0,63436.0,0.76491095]
[1719815362712,0.584319,63437.0,63436.0,0.76291095]
[1719815363516,0.584319,63437.0,63436.0,0.76391095]
[1719815364100,0.584319,63437.0,63436.0,0.76291095]
[1719815364472,0.587319,63437.0,63436.0,0.76291095]
[1719815366751,0.587319,63437.0,63436.0,0.83641095]
[1719815368291,0.272046,63437.0,63436.0,0.83641095]
[1719815369793,0.11441,63437.0,63436.0,0.83641095]
[1719815372074,0.01441,63437.0,63436.0,0.76291095]
[1719815372289,0.01441,63437.0,63436.0,0.83641095]
[1719815389611,0.01441,63437.0,63436.0,1.64031593]
[1719815389772,0.01141,63437.0,63436.0,1.44031593]
[1719815391628,0.01141,63437.0,63436.0,1.30932795]
[1719815391629,0.00841,63437.0,63436.0,1.30932795]
[1719815391769,0.00841,63437.0,63436.0,1.44031197]
[1719815391972,0.01141,63437.0,63436.0,1.44031197]
[1719815392174,0.01141,63437.0,63436.0,1.64031197]
[1719815392375,0.01141,63437.0,63436.0,1.44031197]
[1719815392613,0.00841,63437.0,63436.0,1.64031197]
[1719815393017,0.00841,63437.0,63436.0,1.64131197]
[1719815393236,0.00841,63437.0,63436.0,1.75858997]
[1719815393408,0.00841,63437.0,63436.0,1.75758997]
[1719815393817,0.00841,63437.0,63436.0,1.75958997]
[1719815394898,0.00841,63437.0,63436.0,1.62860595]
[1719815395208,0.00841,63437.0,63436.0,1.62660595]
[1719815395410,0.00841,63437.0,63436.0,1.75758997]
[1719815396034,0.00841,63437.0,63436.0,1.76158997]
[1719815398055,0.00841,63437.0,63436.0,1.63060595]
[1719815398365,0.00841,63437.0,63436.0,1.7615898]
[1719815398968,0.00841,63437.0,63436.0,1.9615898]
[1719815399174,0.00841,63437.0,63436.0,1.7615898]
[1719815400184,0.00841,63437.0,63436.0,1.9615898]
[1719815400385,0.00841,63437.0,63436.0,1.7615898]
[1719815400835,0.00841,63437.0,63436.0,1.83060595]
[1719815400991,0.00841,63437.0,63436.0,2.4392025]
[1719815401196,0.00841,63437.0,63436.0,2.2392025]
[1719815402348,0.00841,63437.0,63436.0,3.0017836]
[1719815402547,0.00841,63437.0,63436.0,2.9544805]
[1719815402759,0.00841,63437.0,63436.0,3.02543515]
[1719815403187,0.00841,63437.0,63436.0,2.9544805]
[1719815403403,0.00841,63437.0,63436.0,3.02143515]
[1719815403597,0.00841,63437.0,63436.0,2.81950093]
[1719815403815,0.00841,63437.0,63436.0,2.95046657]
[1719815404229,0.00841,63437.0,63436.0,2.95646657]
[1719815404230,0.00941,63437.0,63436.0,2.95646657]
[1719815404696,0.00941,63437.0,63436.0,3.00374609]
[1719815404887,0.00841,63437.0,63436.0,2.99574609]
[1719815405291,0.00941,63437.0,63436.0,2.99974609]
[1719815405514,0.00941,63437.0,63436.0,2.95246657]
[1719815405637,0.00841,63437.0,63436.0,2.94846657]
[1719815406056,0.00941,63437.0,63436.0,2.95546657]
[1719815406709,0.00941,63437.0,63436.0,2.82450093]
[1719815406918,0.00941,63437.0,63436.0,2.95546818]
[1719815407136,0.00941,63437.0,63436.0,2.95546873]
[1719815407486,0.00941,63437.0,63436.0,1.97251273]
[1719815407698,0.00941,63437.0,63436.0,1.77251273]
[1719815408335,0.01041,63437.0,63436.0,1.78251273]
[1719815408565,0.01041,63437.0,63436.0,1.77551273]
[1719815408745,0.00841,63437.0,63436.0,1.76551273]
[1719815409164,0.00941,63437.0,63436.0,1.77551273]
[1719815409363,0.01041,63437.0,63436.0,1.71381273]
[1719815409599,0.01041,63437.0,63436.0,1.58284493]
[1719815409794,0.01041,63437.0,63436.0,1.71382099]
[1719815409929,0.01041,63437.0,63436.0,1.71382104]
[1719815410540,0.01041,63437.0,63436.0,0.76328706]
[1719815410541,0.635219,63437.0,63436.0,0.76328706]
[1719815410755,0.635219,63437.0,63436.0,0.63231095]
[1719815410756,1.023092,63437.0,63436.0,0.63231095]
[1719815410955,1.60070398,63437.0,63436.0,0.60324656]
[1719815411598,1.64695999,63437.0,63436.0,0.59324656]
[1719815411742,1.59970398,63437.0,63436.0,0.59324656]
[1719815411969,1.59970398,63437.0,63436.0,0.59424656]
[1719815411970,1.60570398,63437.0,63436.0,0.59424656]
[1719815412153,1.676588,63437.0,63436.0,0.59424656]
[1719815412352,1.675588,63437.0,63436.0,0.59024656]
[1719815412556,1.59870398,63437.0,63436.0,0.58924656]
[1719815412760,1.65290711,63437.0,63436.0,0.58924656]
[1719815412967,1.65290711,63437.0,63436.0,0.61831095]
[1719815412968,1.443365,63437.0,63436.0,0.61831095]
[1719815413170,1.426365,63437.0,63436.0,0.61831095]
[1719815413377,1.426365,63437.0,63436.0,0.61931095]
[1719815413378,1.48556912,63437.0,63436.0,0.61931095]
[1719815413598,1.48556912,63437.0,63436.0,0.60935198]
[1719815413599,1.448365,63437.0,63436.0,0.60935198]
[1719815414243,1.462365,63437.0,63436.0,0.60935198]
[1719815414550,1.462365,63437.0,63436.0,0.61931095]
[1719815415111,1.452365,63437.0,63436.0,0.61931095]
[1719815416792,1.452365,63437.0,63436.0,0.60935198]
[1719815416994,1.462365,63437.0,63436.0,0.60935198]
[1719815417146,1.462365,63437.0,63436.0,0.61931095]
[1719815417950,1.462365,63437.0,63436.0,0.60935198]
[1719815419706,1.462365,63437.0,63436.0,0.44121942]
[1719815419891,1.462365,63437.0,63436.0,0.60935198]
[1719815422950,3.12704722,63437.0,63436.0,0.422114]
[1719815423163,3.12704722,63437.0,63418.0,0.18723798]
[1719815423164,0.309781,63419.0,63418.0,0.18723798]
[1719815423365,0.625143,63419.0,63418.0,0.18723798]
[1719815423697,0.725143,63419.0,63418.0,0.18723798]
[1719815423823,1.345867,63419.0,63418.0,0.19719695]
[1719815424028,1.419367,63419.0,63418.0,0.19719695]
[1719815424251,1.429367,63419.0,63418.0,0.19719695]
[1719815425333,1.357967,63419.0,63418.0,0.19719695]
[1719815425560,0.896405,63419.0,63418.0,0.19719695]
[1719815426556,0.901405,63419.0,63418.0,0.19719695]
[1719815430310,1.216767,63419.0,63418.0,0.19719695]
[1719815430506,0.901405,63419.0,63418.0,0.19719695]
[1719815432117,0.901405,63419.0,63418.0,0.19812095]
[1719815434555,1.216767,63419.0,63418.0,0.19812095]
[1719815435561,0.901405,63419.0,63418.0,0.19812095]
[1719815437325,0.911405,63419.0,63418.0,0.19812095]
[1719815439274,0.901405,63419.0,63418.0,0.19812095]
[1719815440852,0.911405,63419.0,63418.0,0.18816198]
[1719815441058,0.911405,63419.0,63418.0,0.19812095]
[1719815441457,0.901405,63419.0,63418.0,0.19812095]
[1719815441669,0.901405,63419.0,63418.0,0.18816198]
[1719815441878,0.911405,63419.0,63418.0,0.19812095]
[1719815445180,0.901405,63419.0,63418.0,0.19812095]
[1719815455180,0.911405,63419.0,63418.0,0.18816198]
[1719815456096,0.911405,63419.0,63418.0,0.02002942]
[1719815456611,0.911405,63419.0,63418.0,0.18816198]
[1719815456817,1.051205,63419.0,63418.0,0.18816198]
[1719815458187,1.366567,63419.0,63418.0,0.18816198]
[1719815458389,1.306767,63419.0,63418.0,0.000924]
[1719815458794,1.306767,63419.0,63418.0,0.02002942]
[1719815459193,1.306767,63419.0,63418.0,0.18816198]
[1719815460477,1.331453,63419.0,63418.0,0.18816198]
[1719815461531,1.326453,63419.0,63418.0,0.18816198]
[1719815462262,1.340453,63419.0,63418.0,0.18816198]
[1719815462814,1.332453,63419.0,63418.0,0.18816198]
[1719815463444,1.346453,63419.0,63418.0,0.18816198]
[1719815463644,1.419953,63419.0,63418.0,0.18816198]
[1719815466495,1.46716022,63419.0,63418.0,0.18816198]
[1719815466700,1.46719324,63419.0,63418.0,0.18816198]
[1719815467124,1.46719314,63419.0,63418.0,0.18816198]
[1719815468086,1.39369314,63419.0,63418.0,0.18816198]
[1719815468201,1.39369314,63419.0,63418.0,0.19812095]
[1719815468408,1.41731321,63419.0,63418.0,0.19812095]
[1719815468611,1.41731321,63419.0,63418.0,0.18816198]
[1719815469904,1.41736835,63419.0,63418.0,0.18816198]
[1719815471590,1.346453,63419.0,63418.0,0.18816198]
[1719815472367,1.346453,63419.0,63418.0,0.02002942]
[1719815476820,1.346453,63419.0,63418.0,0.000924]
[1719815476821,1.83415398,63419.0,63418.0,0.000924]
[1719815477025,1.89535398,63419.0,63418.0,0.000924]
[1719815477172,1.90189201,63419.0,63418.0,0.000924]
[1719815478797,1.75069201,63419.0,63418.0,0.000924]
[1719815478971,1.51533001,63419.0,63418.0,0.000924]
[1719815479176,1.50879198,63419.0,63418.0,0.000924]
[1719815479376,1.51532988,63419.0,63418.0,0.000924]
[1719815479578,1.50879198,63419.0,63418.0,0.000924]
[1719815479781,1.51533,63419.0,63418.0,0.000924]
[1719815479981,1.63343189,63419.0,63418.0,0.000924]
[1719815480346,1.61943189,63419.0,63418.0,0.000924]
[1719815480684,1.63343189,63419.0,63418.0,0.000924]
[1719815480899,1.63343189,63419.0,63418.0,0.18816198]
[1719815480900,1.27299102,63419.0,63418.0,0.18816198]
[1719815481098,1.252453,63419.0,63418.0,0.18816198]
[1719815481499,1.238453,63419.0,63418.0,0.18816198]
[1719815481897,1.252453,63419.0,63418.0,0.18816198]
[1719815482487,1.238453,63419.0,63418.0,0.18816198]
[1719815482901,1.252453,63419.0,63418.0,0.18816198]
[1719815483107,1.266453,63419.0,63418.0,0.18816198]
[1719815484263,1.266453,63419.0,63418.0,0.19812095]
[1719815484465,1.266453,63419.0,63418.0,0.18816198]
[1719815485121,1.28900471,63419.0,63418.0,0.19812095]
[1719815485334,1.241767,63419.0,63418.0,0.19812095]
[1719815485530,1.28900417,63419.0,63418.0,0.19812095]
[1719815486097,1.241767,63419.0,63418.0,0.19812095]
[1719815487598,1.31262283,63419.0,63418.0,0.18816198]
[1719815488551,1.31262262,63419.0,63418.0,0.18816198]
[1719815489221,1.241767,63419.0,63418.0,0.18816198]
[1719815489419,1.31262262,63419.0,63418.0,0.18816198]
[1719815489929,1.31262262,63419.0,63418.0,0.02002942]
[1719815490130,1.31262262,63419.0,63418.0,0.18816198]
[1719815490419,1.33730963,63419.0,63418.0,0.18816198]
[1719815490823,1.31262262,63419.0,63418.0,0.18816198]
[1719815491022,1.33730958,63419.0,63418.0,0.02002942]
[1719815491620,1.33730958,63419.0,63418.0,0.18816198]
[1719815491830,1.3126163,63419.0,63418.0,0.18816198]
[1719815492259,1.31261604,63419.0,63418.0,0.18816198]
[1719815492608,1.33730296,63419.0,63418.0,0.18816198]
[1719815493590,1.31261604,63419.0,63418.0,0.18816198]
[1719815494743,1.33731222,63419.0,63418.0,0.18816198]
[1719815494948,1.33731247,63419.0,63418.0,0.18816198]
[1719815497817,1.26645394,63419.0,63418.0,0.18816198]
[1719815498018,1.33732073,63419.0,63418.0,0.18816198]
[1719815498235,1.26645394,63419.0,63418.0,0.18816198]
[1719815499585,1.26645394,63419.0,63418.0,0.19812095]
[1719815499781,1.31263706,63419.0,63418.0,0.19812095]
[1719815499963,1.241767,63419.0,63418.0,0.19812095]
[1719815500379,1.28901372,63419.0,63418.0,0.19812095]
[1719815501183,1.28901422,63419.0,63418.0,0.19812095]
[1719815501418,1.241767,63419.0,63418.0,0.19812095]
[1719815501625,0.916405,63419.0,63418.0,0.19812095]
[1719815501765,0.128,63419.0,63418.0,0.33892095]
[1719815502167,0.028,63419.0,63418.0,0.33892095]
[1719815502629,0.014,63419.0,63418.0,0.33892095]
[1719815502852,0.257676,63421.0,63420.0,0.34179695]
[1719815504348,0.1,63421.0,63420.0,0.34179695]
[1719815506136,0.1,63426.0,63425.0,0.31989153]
[1719815506349,0.315309,63430.0,63425.0,0.31989153]
[1719815506350,0.30490406,63428.0,63427.0,0.17809153]
[1719815507524,0.30489712,63428.0,63427.0,0.17809153]
[1719815507727,0.257659,63428.0,63427.0,0.17809153]
[1719815509869,0.271659,63428.0,63427.0,0.17809153]
[1719815510098,0.600977,63428.0,63427.0,0.17809153]
[1719815510713,0.610977,63428.0,63427.0,0.18723798]
[1719815512475,0.926295,63428.0,63427.0,0.18723798]
[1719815512882,0.926295,63428.0,63427.0,0.19719695]
[1719815520392,0.926295,63428.0,63427.0,0.18723798]
[1719815520844,0.916295,63428.0,63427.0,0.19719695]
[1719815521453,0.926295,63428.0,63427.0,0.18723798]
[1719815521853,0.926295,63428.0,63427.0,0.19719695]
[1719815522698,0.926295,63428.0,63427.0,0.18723798]
[1719815522833,0.926295,63428.0,63427.0,0.19719695]
[1719815524614,0.916295,63428.0,63427.0,0.19719695]
[1719815525255,0.926295,63428.0,63427.0,0.19719695]
[1719815525921,0.916295,63428.0,63427.0,0.19719695]
[1719815528155,0.916295,63428.0,63427.0,0.19812095]
[1719815529251,0.128,63428.0,63427.0,0.60992095]
[1719815529515,0.028,63428.0,63427.0,0.60992095]
[1719815529987,0.028,63428.0,63427.0,1.21390328]
[1719815530230,0.014,63428.0,63427.0,1.37156428]
[1719815530402,0.014,63428.0,63427.0,2.00221028]
[1719815531016,0.028,63428.0,63427.0,2.00221028]
[1719815531218,0.014,63428.0,63427.0,1.68688728]
[1719815531675,0.00084,63436.0,63435.0,0.31829153]
[1719815531890,0.00084,63436.0,63435.0,0.79122153]
[1719815532947,0.00084,63436.0,63435.0,0.81032695]
[1719815533614,0.00784,63436.0,63435.0,0.81032695]
[1719815534346,0.01284,63436.0,63435.0,0.81032695]
[1719815534755,0.00784,63436.0,63435.0,0.81032695]
[1719815535116,0.00084,63436.0,63435.0,0.81032695]
[1719815535237,0.00584,63436.0,63435.0,0.81032695]
[1719815535448,0.01284,63436.0,63435.0,0.81032695]
[1719815539420,0.01284,63436.0,63435.0,0.93532695]
[1719815539583,0.01284,63436.0,63435.0,1.56335095]
[1719815540393,0.00784,63436.0,63435.0,1.56335095]
[1719815540793,0.01284,63436.0,63435.0,1.56335095]
[1719815541196,0.00784,63436.0,63435.0,1.56335095]
[1719815541400,0.00084,63436.0,63435.0,1.56335095]
[1719815541599,0.00484,63436.0,63435.0,1.56335095]
[1719815542392,0.00484,63436.0,63435.0,1.58213435]
[1719815542797,0.01084,63436.0,63435.0,2.05975633]
[1719815543625,0.00484,63436.0,63435.0,2.05975633]
[1719815543788,0.00084,63436.0,63435.0,2.05975633]
[1719815543988,0.00284,63436.0,63435.0,2.05975633]
[1719815544586,0.00384,63436.0,63435.0,2.06375633]
[1719815544792,0.00384,63436.0,63435.0,2.06575633]
[1719815544993,0.00484,63436.0,63435.0,2.06575633]
[1719815548447,0.00484,63436.0,63435.0,2.26575633]
[1719815548825,0.00841,63445.0,63444.0,0.54485698]
[1719815548957,0.00841,63445.0,63444.0,1.23937595]
[1719815549159,0.00841,63445.0,63444.0,1.55461395]
[1719815550162,0.01441,63445.0,63444.0,1.55461395]
[1719815551094,0.01841,63445.0,63444.0,1.55461395]
[1719815553262,0.01841,63445.0,63444.0,2.03219093]
[1719815554093,0.01441,63445.0,63444.0,2.03219093]
[1719815554314,0.00841,63445.0,63444.0,2.03219093]
[1719815554502,0.01041,63445.0,63444.0,2.03219093]
[1719815555039,0.01041,63445.0,63444.0,2.03519093]
[1719815556234,0.00841,63445.0,63444.0,2.03519093]
[1719815556438,0.00841,63445.0,63444.0,1.71995293]
[1719815556638,0.00841,63445.0,63444.0,1.72195293]
[1719815557040,0.00841,63445.0,63444.0,1.7408171]
[1719815571143,0.00841,63445.0,63444.0,1.8717805]
[1719815572129,0.00841,63445.0,63444.0,1.7408171]
[1719815576013,0.00841,63445.0,63444.0,1.87178029]
[1719815577240,0.00841,63445.0,63444.0,2.18701829]
[1719815577421,0.00841,63445.0,63444.0,2.38701829]
[1719815578246,0.00841,63449.0,63448.0,0.67002395]
[1719815578516,0.00841,63449.0,63448.0,1.96867412]
[1719815579534,0.00941,63449.0,63448.0,1.96867412]
[1719815579733,0.01241,63449.0,63448.0,1.96867412]
[1719815580104,0.01241,63449.0,63448.0,2.16867412]
[1719815580304,0.01241,63449.0,63448.0,2.16867033]
[1719815580746,0.01241,63449.0,63448.0,1.96867033]
[1719815580996,0.01241,63449.0,63448.0,2.16867033]
[1719815581169,0.01241,63449.0,63448.0,1.96867033]
[1719815582793,0.01241,63449.0,63448.0,1.83771093]
[1719815582955,0.01241,63449.0,63448.0,1.96867031]
[1719815583786,0.01241,63449.0,63448.0,0.80098633]
[1719815583988,0.09421,63449.0,63448.0,0.67002695]
[1719815585861,0.485523,63449.0,63448.0,0.67002695]
[1719815586013,0.958342,63449.0,63448.0,0.67002695]
[1719815588093,0.948342,63449.0,63448.0,0.67002695]
[1719815588446,0.958342,63449.0,63448.0,0.67002695]
[1719815589270,0.948342,63449.0,63448.0,0.67002695]
[1719815589771,0.633129,63449.0,63448.0,0.67002695]
[1719815590581,0.317916,63449.0,63448.0,0.67002695]
[1719815593665,0.16031,63449.0,63448.0,0.67002695]
[1719815594007,0.09421,63449.0,63448.0,0.67002695]
[1719815595185,0.01241,63449.0,63448.0,0.67002695]
[1719815607105,0.01241,63449.0,63448.0,0.90883595]
[1719815611689,0.01241,63449.0,63448.0,1.03979554]
[1719815614553,0.01241,63449.0,63448.0,1.03979492]
[1719815615234,0.01241,63449.0,63448.0,1.03979496]
[1719815615709,0.01241,63449.0,63448.0,1.35501296]
[1719815620722,0.01241,63449.0,63448.0,1.22405395]
[1719815620919,0.01241,63449.0,63448.0,1.35501028]
[1719815621277,0.01241,63449.0,63448.0,1.35500997]
[1719815623806,0.01241,63449.0,63448.0,1.35501152]
[1719815627539,0.01241,63449.0,63448.0,1.03979352]
[1719815630107,0.01241,63449.0,63448.0,0.90883595]
[1719815630310,0.01241,63449.0,63448.0,1.03979395]
[1719815632251,0.01241,63449.0,63448.0,0.90883595]
[1719815632452,0.01241,63449.0,63448.0,1.03979538]
[1719815633452,0.01241,63449.0,63448.0,1.03979536]
[1719815633869,0.01241,63449.0,63448.0,1.03979531]
[1719815636521,0.01241,63449.0,63448.0,0.80098631]
[1719815636726,0.01241,63449.0,63448.0,0.8009867]
[1719815639629,0.01241,63449.0,63448.0,0.80098795]
[1719815641074,0.250316,63449.0,63448.0,0.80098795]
[1719815642039,0.250316,63449.0,63448.0,0.67002695]